bitfinex-derivatives/quotes_ETHF0:USTF0_20250205
["timestamp","ask_amount","ask_price","bid_price","bid_amount"]
[1738780401856,0.00545306,2752.1,2751.9,3.2078]
[1738780402458,0.00545306,2752.1,2752.0,4.72757879]
[1738780402654,0.00545306,2752.1,2752.0,6.66327879]
[1738780403463,0.00545306,2752.1,2752.0,1.9357]
[1738780403865,0.00545306,2752.1,2751.9,3.2078]
[1738780404164,3.2078,2752.0,2751.6,0.00545306]
[1738780404460,0.00545306,2752.1,2751.6,0.00545306]
[1738780404461,3.2078,2751.7,2751.6,0.00545306]
[1738780404763,4.123,2752.0,2751.6,0.00545306]
[1738780405063,3.2078,2751.8,2751.6,0.00545306]
[1738780405262,4.123,2752.0,2751.6,0.00545306]
[1738780405965,3.93451,2751.7,2751.6,0.00545306]
[1738780406167,3.2078,2751.7,2751.6,0.00545306]
[1738780407765,3.93451,2751.7,2751.6,0.00545306]
[1738780407963,3.2078,2751.7,2751.6,0.00545306]
[1738780408167,8.93451,2751.7,2750.6,3.2078]
[1738780408365,3.2078,2751.3,2750.6,3.2078]
[1738780409359,3.2078,2751.3,2750.7,0.00363536]
[1738780409567,0.00545306,2752.1,2751.2,7.47653067]
[1738780409868,0.00545306,2752.1,2751.3,2.0472]
[1738780410363,3.2078,2751.9,2751.1,3.2078]
[1738780410761,3.2078,2751.9,2751.2,4.65084199]
[1738780411165,3.2078,2751.9,2751.1,3.2078]
[1738780411969,3.2078,2751.9,2751.2,4.80161445]
[1738780412267,3.2078,2751.6,2750.7,0.00363536]
[1738780412568,3.2078,2750.8,2750.1,3.2078]
[1738780413178,3.2078,2750.9,2750.1,3.2078]
[1738780413670,0.00545306,2750.8,2750.5,3.2078]
[1738780414058,0.00545306,2750.8,2750.2,3.2078]
[1738780414263,0.72699,2750.7,2750.2,3.2078]
[1738780414466,3.2078,2750.6,2749.9,3.2078]
[1738780414665,3.2078,2750.2,2749.6,3.2078]
[1738780414864,3.93491,2750.2,2749.6,3.2078]
[1738780415574,2.0118,2750.1,2749.6,3.2078]
[1738780416170,3.2078,2749.9,2749.1,11.66736223]
[1738780416362,2.0118,2750.1,2749.4,3.2078]
[1738780418266,2.0118,2750.1,2749.1,3.2078]
[1738780418469,2.0118,2750.1,2749.4,3.2078]
[1738780418865,3.2078,2750.5,2749.7,3.2078]
[1738780419167,1.899,2751.1,2750.0,3.2078]
[1738780419370,1.899,2751.1,2750.2,3.2078]
[1738780419966,2.62587,2751.1,2750.1,3.9204]
[1738780420270,1.899,2751.1,2750.2,4.66971761]
[1738780420966,3.2078,2750.9,2750.1,3.9204]
[1738780421166,3.2078,2750.4,2749.5,3.2078]
[1738780421371,3.2078,2750.4,2749.2,7.47301173]
[1738780421572,0.72713,2750.1,2749.1,1.8714]
[1738780421769,0.72712,2750.2,2749.1,1.8714]
[1738780421970,0.72712,2750.2,2749.2,3.2078]
[1738780422171,1.8567,2750.3,2749.2,7.99913532]
[1738780422369,1.8567,2750.3,2749.5,3.2078]
[1738780422574,3.2078,2750.4,2749.5,3.2078]
[1738780422773,1.575,2750.5,2749.6,4.79133532]
[1738780422974,2.30204,2750.5,2749.6,4.79133532]
[1738780423273,1.575,2750.5,2749.6,4.79133532]
[1738780423464,1.575,2750.5,2749.7,3.2078]
[1738780423669,1.575,2750.5,2749.6,4.79133532]
[1738780423974,1.575,2750.5,2749.4,3.2078]
[1738780424369,1.575,2750.5,2749.7,3.2078]
[1738780424978,3.2078,2750.4,2749.7,3.2078]
[1738780425278,1.575,2750.5,2749.7,3.2078]
[1738780425671,2.30203,2750.5,2749.7,3.2078]
[1738780426276,5.0803,2750.7,2749.7,3.2078]
[1738780426475,5.80728,2750.7,2749.7,3.2078]
[1738780426774,3.2078,2750.3,2749.7,3.2078]
[1738780427180,3.2078,2750.0,2749.1,5.0792]
[1738780427368,3.9219,2749.9,2749.1,3.2078]
[1738780427569,4.6491,2749.9,2749.1,3.2078]
[1738780427773,0.72722,2749.8,2749.1,3.2078]
[1738780427977,3.9219,2749.9,2749.1,3.2078]
[1738780428282,0.72722,2749.8,2749.1,3.2078]
[1738780428477,8.0805,2749.9,2749.1,3.2078]
[1738780428673,5.7813,2749.9,2749.1,3.2078]
[1738780428879,3.2078,2750.4,2749.4,3.2078]
[1738780429575,3.2078,2749.8,2749.1,3.2078]
[1738780429781,4.56635,2749.7,2749.1,3.2078]
[1738780429982,3.8391,2749.7,2749.1,3.2078]
[1738780430485,0.72731,2749.5,2749.1,3.2078]
[1738780430691,0.72737,2749.2,2748.5,3.9504]
[1738780430985,3.2078,2749.3,2748.5,3.9504]
[1738780431178,0.00545306,2749.1,2748.4,3.2078]
[1738780432380,0.72745,2749.0,2748.4,3.2078]
[1738780432586,3.8695,2748.9,2748.4,3.2078]
[1738780432773,3.2078,2748.6,2748.0,3.2078]
[1738780434378,2.0324,2748.7,2747.4,3.2078]
[1738780434379,3.2078,2748.3,2747.4,3.2078]
[1738780434584,3.2078,2748.6,2747.4,3.2078]
[1738780434780,3.2078,2748.3,2747.4,3.2078]
[1738780435485,0.72767,2748.1,2747.4,3.2078]
[1738780435678,1.9076,2748.0,2747.4,3.2078]
[1738780435880,1.571,2747.9,2747.4,3.2078]
[1738780436084,1.571,2747.9,2747.1,3.9479]
[1738780436987,3.2078,2747.3,2746.4,3.2078]
[1738780437176,3.2078,2747.3,2746.1,3.2078]
[1738780437376,0.00545306,2747.1,2746.7,3.2078]
[1738780438076,0.00545306,2747.1,2746.6,3.2078]
[1738780438283,0.00545306,2747.1,2747.0,3.2078]
[1738780438987,1.571,2748.2,2747.0,12.87260308]
[1738780439183,1.571,2748.2,2747.5,3.2078]
[1738780439382,1.571,2748.2,2747.4,3.2078]
[1738780439585,1.571,2748.2,2747.7,3.2078]
[1738780439884,3.2078,2748.3,2747.7,3.2078]
[1738780440084,0.00545306,2748.2,2747.7,3.21325306]
[1738780440691,0.00545306,2748.2,2747.9,3.2078]
[1738780440893,0.00545306,2748.2,2747.7,0.00545306]
[1738780441087,0.00545306,2748.2,2747.7,3.21325306]
[1738780441288,0.00545306,2748.2,2747.8,4.73450524]
[1738780441485,3.21325306,2748.2,2747.7,0.00545306]
[1738780441689,0.00545306,2748.2,2747.7,0.00545306]
[1738780442691,0.00545306,2748.2,2747.8,3.2078]
[1738780443293,0.00545306,2748.2,2748.1,3.2078]
[1738780443990,3.2078,2749.8,2748.1,12.9810813]
[1738780444186,3.2078,2749.8,2748.9,3.2078]
[1738780444390,3.2078,2749.8,2749.2,3.2078]
[1738780444786,1.8627,2750.0,2748.6,5.2373]
[1738780444787,0.72732,2749.4,2748.6,5.2373]
[1738780445094,3.2078,2749.2,2748.6,3.2078]
[1738780445297,3.2078,2749.2,2748.7,0.00545306]
[1738780445595,3.2078,2749.2,2748.7,4.83171759]
[1738780445993,0.00545306,2749.3,2748.9,3.2078]
[1738780446199,0.00545306,2749.3,2749.0,1.9605]
[1738780446991,0.00545306,2749.3,2749.2,3.2078]
[1738780447395,0.00545306,2749.3,2749.0,1.9605]
[1738780447790,3.21325306,2749.3,2748.8,5.0866]
[1738780447986,0.00545306,2749.3,2748.8,5.0866]
[1738780449700,3.21325306,2749.3,2748.8,3.2078]
[1738780450096,3.21325306,2749.3,2748.9,4.7480629]
[1738780450097,0.00545306,2749.3,2748.9,4.7480629]
[1738780450399,3.2078,2750.2,2749.1,3.93519]
[1738780450599,3.2078,2750.2,2749.7,3.2078]
[1738780451101,3.2078,2750.5,2749.7,3.2078]
[1738780451294,3.2078,2751.0,2750.0,3.2078]
[1738780451489,0.00545306,2750.4,2750.0,3.2078]
[1738780451696,0.00545306,2750.4,2750.1,4.68228701]
[1738780451891,0.00545306,2750.4,2750.3,3.2078]
[1738780452291,0.00545306,2750.4,2750.0,8.03768522]
[1738780452499,0.00545306,2750.4,2750.0,3.2078]
[1738780452705,0.00545306,2750.4,2750.2,4.82988522]
[1738780452898,0.00545306,2750.4,2750.1,4.82988522]
[1738780453099,0.00545306,2750.4,2750.0,3.2078]
[1738780454706,0.00545306,2750.4,2749.8,0.00545306]
[1738780455005,3.90445306,2750.4,2749.8,0.00545306]
[1738780455207,0.00545306,2750.4,2749.8,0.00545306]
[1738780455405,0.00545306,2750.4,2750.3,3.2078]
[1738780455603,0.00545306,2750.4,2750.1,3.2078]
[1738780457296,0.00545306,2750.4,2750.2,4.77133676]
[1738780457499,0.00545306,2750.4,2750.1,3.2078]
[1738780458705,0.00545306,2750.4,2749.8,5.21825306]
[1738780459106,0.00545306,2750.4,2749.9,4.67718261]
[1738780459409,3.21325306,2750.4,2749.8,3.21325306]
[1738780459704,0.00545306,2750.4,2749.8,3.21325306]
[1738780460005,0.00545306,2750.4,2750.2,3.2078]
[1738780460710,0.00545306,2750.4,2750.3,4.69887974]
[1738780461103,0.00545306,2750.4,2750.2,3.2078]
[1738780461902,0.00545306,2750.4,2749.9,5.0946]
[1738780462306,0.00545306,2750.4,2750.0,4.80744489]
[1738780462505,0.00545306,2750.4,2749.9,5.0946]
[1738780462912,0.00545306,2750.4,2750.1,4.80744489]
[1738780463114,0.00545306,2750.4,2750.0,4.80744489]
[1738780463299,0.00545306,2750.4,2749.9,5.0946]
[1738780463502,0.00545306,2750.4,2750.0,4.81550678]
[1738780464206,0.00545306,2750.4,2749.9,5.0946]
[1738780464406,0.00545306,2750.4,2750.3,3.2078]
[1738780464906,0.00545306,2750.4,2750.0,3.90839796]
[1738780465306,0.00545306,2750.4,2750.2,4.74275626]
[1738780465608,0.00545306,2750.4,2749.9,5.0946]
[1738780465808,0.00545306,2750.4,2749.9,3.2078]
[1738780466608,1.99325306,2750.4,2749.9,3.2078]
[1738780466905,3.89855306,2750.4,2749.9,3.2078]
[1738780467110,1.99325306,2750.4,2750.0,3.90839796]
[1738780467510,0.00545306,2750.4,2750.0,3.90839796]
[1738780467903,0.00545306,2750.4,2750.1,4.81914654]
[1738780468614,0.00545306,2750.4,2750.2,3.2078]
[1738780468815,0.00545306,2750.4,2750.0,3.90839796]
[1738780469606,0.00545306,2750.4,2749.9,3.2078]
[1738780470012,1.91105306,2750.4,2749.9,3.2078]
[1738780470813,0.00545306,2750.4,2750.0,8.63356305]
[1738780471013,0.00545306,2750.4,2750.2,3.2078]
[1738780471617,0.00545306,2750.4,2749.9,3.2078]
[1738780474419,0.00545306,2750.4,2749.8,0.00545306]
[1738780474420,3.2078,2750.1,2749.8,0.00545306]
[1738780474620,3.2078,2750.1,2748.8,3.90839796]
[1738780474621,4.5642,2750.0,2748.8,3.90839796]
[1738780474820,3.2078,2749.7,2748.8,3.90839796]
[1738780475019,3.2078,2749.7,2749.1,3.90839796]
[1738780475216,3.2078,2750.0,2749.4,3.90839796]
[1738780475622,3.2078,2750.0,2749.3,3.2078]
[1738780475824,3.2078,2750.0,2749.4,0.00545306]
[1738780476518,3.2078,2749.7,2749.4,0.00545306]
[1738780476717,2.5013,2749.6,2749.4,0.00545306]
[1738780477324,0.72729,2749.5,2749.4,0.00545306]
[1738780477618,4.8336,2749.5,2749.4,0.00545306]
[1738780480926,5.56089,2749.5,2749.4,0.00545306]
[1738780481228,0.72735,2749.3,2748.2,3.90839796]
[1738780481426,3.2078,2749.2,2748.2,3.90839796]
[1738780481621,3.2078,2749.2,2748.1,3.2078]
[1738780481930,3.2078,2748.6,2748.1,3.2078]
[1738780482223,3.2078,2748.6,2747.7,5.034]
[1738780482418,2.5801,2748.5,2748.1,0.00545306]
[1738780482621,3.2078,2748.3,2748.1,0.00545306]
[1738780482819,3.90839796,2748.2,2747.1,1.56700078]
[1738780483020,3.2078,2747.6,2747.1,1.56700078]
[1738780483428,3.2078,2747.3,2747.1,1.56700078]
[1738780483733,2.5801,2747.5,2746.6,14.53191743]
[1738780484323,2.5843,2747.4,2746.6,14.53191743]
[1738780484527,3.2078,2747.2,2746.6,11.32411743]
[1738780484731,7.11619796,2747.3,2746.6,11.32411743]
[1738780484928,3.2078,2747.3,2746.6,11.32411743]
[1738780486933,3.2078,2747.0,2746.6,11.32411743]
[1738780488338,0.00545306,2747.2,2746.6,11.32411743]
[1738780488538,0.00545306,2747.2,2746.7,3.2078]
[1738780489036,0.00545306,2747.2,2746.9,45.62066273]
[1738780489333,0.00545306,2747.2,2747.1,3.2078]
[1738780490137,0.00545306,2747.2,2747.1,44.0078]
[1738780490725,0.00545306,2747.2,2747.1,3.2078]
[1738780490936,0.00545306,2747.2,2746.9,5.0431]
[1738780492630,0.00545306,2747.2,2747.1,3.2078]
[1738780493538,0.00545306,2747.2,2746.9,5.0431]
[1738780493927,0.00545306,2747.2,2747.1,3.2078]
[1738780494231,0.0018177,2747.2,2747.1,8.02904449]
[1738780495432,0.0018177,2747.2,2747.1,3.2078]
[1738780496537,0.0018177,2747.2,2747.1,12.86256208]
[1738780496738,3.2078,2748.1,2747.1,12.86256208]
[1738780496932,3.2078,2748.1,2747.1,7.86256208]
[1738780497838,0.00545306,2747.9,2747.1,7.86256208]
[1738780499935,0.00545306,2747.9,2747.5,3.2078]
[1738780500437,0.00545306,2747.9,2746.9,5.04673536]
[1738780500438,0.72784,2747.5,2747.2,3.2078]
[1738780500740,5.6017,2747.8,2746.9,8.25453536]
[1738780500940,2.4948,2747.7,2746.9,3.21143536]
[1738780501133,3.2078,2747.3,2746.9,0.00363536]
[1738780501334,3.93575,2747.0,2746.9,0.00363536]
[1738780501536,3.93575,2747.0,2745.8,3.90839796]
[1738780501730,3.2078,2746.6,2746.0,3.2078]
[1738780501931,3.2078,2746.6,2746.0,8.00403561]
[1738780502229,3.2078,2746.6,2746.1,3.90839796]
[1738780502435,3.2078,2746.6,2746.1,8.66477591]
[1738780502635,3.2078,2746.6,2746.1,8.66659361]
[1738780503036,3.2078,2747.3,2746.5,3.2078]
[1738780503240,3.2078,2747.3,2746.9,3.2078]
[1738780504442,3.2078,2747.3,2746.6,8.2178]
[1738780504639,3.2078,2747.3,2746.6,5.6489]
[1738780505042,3.2078,2747.3,2746.9,3.2078]
[1738780505846,3.2078,2747.8,2747.0,3.90839796]
[1738780506042,0.00545306,2747.9,2747.3,7.11619796]
[1738780506242,0.00545306,2747.9,2747.3,3.2078]
[1738780506550,0.00545306,2747.9,2747.1,2.5137]
[1738780507049,0.00545306,2747.9,2747.3,3.2078]
[1738780507348,0.00545306,2747.9,2747.4,2.631]
[1738780507745,0.00545306,2747.9,2747.7,3.2078]
[1738780508140,0.00545306,2747.9,2747.4,5.8388]
[1738780508448,0.00545306,2747.9,2747.5,4.78642785]
[1738780509344,3.21325306,2747.9,2747.5,0.0018177]
[1738780509750,0.00545306,2747.9,2747.7,3.2078]
[1738780509945,3.2078,2748.5,2747.8,5.0773]
[1738780510246,3.2078,2748.5,2748.1,3.2078]
[1738780510444,3.2078,2748.5,2747.8,9.84439376]
[1738780510445,3.2078,2748.5,2747.8,8.2851]
[1738780510748,3.2078,2748.5,2747.8,3.2078]
[1738780511247,0.00545306,2748.4,2747.8,3.2078]
[1738780513040,2.46625306,2748.4,2747.8,3.2078]
[1738780514050,2.5873,2748.3,2747.8,3.2078]
[1738780514346,5.1318,2748.3,2747.8,3.2078]
[1738780516446,2.5873,2748.3,2747.8,3.2078]
[1738780516846,3.2078,2748.2,2747.5,0.0018177]
[1738780517240,3.2078,2747.9,2747.5,0.0018177]
[1738780519552,0.72782,2747.5,2746.8,3.2078]
[1738780519754,7.11619796,2747.3,2746.8,3.2078]
[1738780520348,7.11619796,2747.3,2746.1,2.4882]
[1738780520349,7.11619796,2747.3,2746.2,3.2078]
[1738780520554,7.11619796,2747.3,2746.8,0.00545306]
[1738780520955,7.12165102,2747.3,2746.8,0.00545306]
[1738780521751,3.2078,2746.9,2746.8,0.00545306]
[1738780522348,3.2078,2747.2,2746.8,0.00545306]
[1738780522544,5.7693,2747.2,2746.8,0.00545306]
[1738780522746,0.00545306,2747.3,2746.8,3.94124306]
[1738780523053,0.00545306,2747.3,2747.2,3.2078]
[1738780523844,0.00545306,2747.3,2746.9,8.1878]
[1738780524450,0.00545306,2747.3,2746.8,0.00545306]
[1738780524451,3.21325306,2747.3,2746.8,0.00545306]
[1738780524649,2.4429,2747.2,2746.8,0.00545306]
[1738780524850,5.102,2747.2,2746.8,0.00545306]
[1738780525854,0.00545306,2747.3,2746.8,0.00545306]
[1738780526445,0.00545306,2747.3,2746.8,3.21325306]
[1738780526759,2.4181,2748.3,2747.1,3.2078]
[1738780526956,3.2078,2748.0,2747.4,3.2078]
[1738780527256,2.4181,2748.3,2747.4,3.2078]
[1738780527750,3.2078,2748.2,2747.4,3.2078]
[1738780527952,0.00545306,2748.1,2747.4,3.2078]
[1738780528864,0.00545306,2748.1,2747.5,4.69391465]
[1738780529955,0.00545306,2748.1,2747.8,3.2078]
[1738780530253,0.00545306,2748.1,2747.9,2.6396]
[1738780530851,0.00545306,2748.1,2747.5,3.2078]
[1738780532558,2.62305306,2748.1,2747.5,3.2078]
[1738780533553,4.19305306,2748.1,2747.5,3.2078]
[1738780533871,3.93555,2747.8,2746.8,0.00545306]
[1738780534156,3.2078,2747.9,2747.0,3.90839796]
[1738780534359,3.2078,2747.9,2747.5,3.2078]
[1738780534661,3.2078,2747.9,2747.2,3.2078]
[1738780534853,2.4751,2748.0,2747.3,2.4497]
[1738780535058,2.4751,2748.0,2747.3,9.73869976]
[1738780535963,0.00545306,2748.1,2747.5,3.2078]
[1738780536360,0.00545306,2748.1,2747.9,3.90839796]
[1738780536559,3.2078,2749.3,2748.0,5.1186]
[1738780536764,3.2078,2749.3,2748.7,7.11619796]
[1738780536957,3.2078,2749.8,2749.0,7.11619796]
[1738780537164,3.2078,2749.8,2749.4,3.2078]
[1738780537561,3.2078,2750.5,2749.6,3.90839796]
[1738780537758,0.00545306,2749.9,2749.7,0.72723]
[1738780537959,0.00545306,2749.9,2749.8,3.2078]
[1738780538359,0.0018177,2749.9,2749.8,12.88030465]
[1738780538559,0.0018177,2749.9,2749.8,7.88030465]
[1738780541266,0.0018177,2749.9,2749.8,3.2078]
[1738780541663,0.0018177,2749.9,2749.4,3.2078]
[1738780545366,0.0018177,2749.9,2749.3,0.00545306]
[1738780545367,3.2096177,2749.9,2749.3,0.00545306]
[1738780545566,2.6634,2749.8,2749.3,0.00545306]
[1738780546672,3.2078,2749.4,2749.3,0.00545306]
[1738780548070,3.2078,2749.4,2748.5,3.2078]
[1738780548071,8.2078,2749.4,2748.5,3.2078]
[1738780548272,2.5435,2749.3,2748.5,3.2078]
[1738780548670,3.27086,2749.3,2748.5,3.2078]
[1738780548871,2.5435,2749.3,2748.5,3.2078]
[1738780549076,3.27086,2749.3,2748.5,3.2078]
[1738780549271,3.27086,2749.3,2748.6,0.00545306]
[1738780549574,6.45189796,2749.3,2748.6,0.00545306]
[1738780549977,7.17924796,2749.3,2748.6,0.00545306]
[1738780550369,2.5435,2749.3,2748.6,0.00545306]
[1738780551577,3.2078,2749.1,2748.6,0.00545306]
[1738780552278,3.2078,2749.2,2748.6,0.00545306]
[1738780556578,2.5435,2749.3,2748.6,0.00545306]
[1738780557779,3.2078,2748.8,2748.6,0.00545306]
[1738780558281,2.5888,2748.7,2748.6,0.00545306]
[1738780559577,2.5888,2748.7,2747.6,5.7514]
[1738780559782,2.5888,2748.7,2747.6,9.65979796]
[1738780559979,2.5888,2748.7,2747.7,4.63306806]
[1738780560377,3.31633,2748.7,2747.7,4.63306806]
[1738780560573,3.2078,2748.2,2747.6,3.2078]
[1738780560776,3.2078,2748.2,2747.9,0.00545306]
[1738780563078,0.00545306,2748.5,2748.0,4.76367439]
[1738780563280,2.644,2749.5,2748.4,3.2078]
[1738780563578,2.644,2749.5,2748.7,3.2078]
[1738780563780,3.2078,2748.9,2748.5,4.70057381]
[1738780564089,3.2078,2748.9,2748.0,3.2078]
[1738780564286,3.2078,2748.9,2748.0,7.11619796]
[1738780564582,3.2078,2750.0,2748.6,11.81677177]
[1738780564778,7.9016,2750.6,2749.6,3.2078]
[1738780565080,3.2078,2750.5,2749.6,3.2078]
[1738780565280,3.2078,2750.5,2749.7,4.6888086]
[1738780565675,0.00545306,2750.4,2749.8,0.00545306]
[1738780566272,0.00545306,2750.4,2749.9,3.2078]
[1738780566476,0.00545306,2750.4,2749.8,0.00545306]
[1738780567181,3.2078,2750.2,2749.8,0.00545306]
[1738780567389,3.2078,2749.9,2749.8,0.00545306]
[1738780567879,3.2078,2750.3,2749.8,0.00545306]
[1738780568277,3.2078,2750.0,2749.8,0.00545306]
[1738780568578,3.2078,2750.3,2749.8,0.00545306]
[1738780569980,3.2078,2750.0,2749.8,0.00545306]
[1738780570886,0.00545306,2750.4,2749.8,0.00545306]
[1738780571585,3.2078,2750.3,2749.8,0.00545306]
[1738780573688,0.00545306,2750.4,2749.8,0.00545306]
[1738780573885,3.2078,2750.2,2749.8,0.00545306]
[1738780575789,3.2078,2750.3,2749.8,0.00545306]
[1738780576085,3.90839796,2750.1,2749.8,0.00545306]
[1738780576389,3.2078,2750.3,2749.8,0.00545306]
[1738780576586,0.72712,2750.2,2749.8,0.00545306]
[1738780577187,3.2078,2750.3,2749.8,0.00545306]
[1738780577684,0.00545306,2750.4,2749.9,7.87793253]
[1738780578288,0.00545306,2750.4,2749.9,3.2078]
[1738780581088,0.00545306,2750.4,2750.0,4.74212581]
[1738780581292,0.00545306,2750.4,2750.2,3.2078]
[1738780582489,0.00545306,2750.4,2750.3,4.63675197]
[1738780582994,0.00545306,2750.4,2750.2,3.2078]
[1738780588090,0.00545306,2750.4,2750.3,4.7848332]
[1738780588393,3.2078,2752.0,2750.4,1.81763]
[1738780588595,3.2078,2752.0,2751.2,3.2078]
[1738780588990,3.2078,2751.6,2750.9,3.2078]
[1738780589189,3.2078,2752.0,2750.9,3.2078]
[1738780589386,3.2078,2752.0,2751.0,4.81590396]
[1738780589694,0.00545306,2751.5,2751.1,3.90839796]
[1738780589889,0.00545306,2751.5,2751.3,3.2078]
[1738780590291,0.00545306,2751.5,2751.1,3.90839796]
[1738780590493,0.00545306,2751.5,2751.0,3.21325306]
[1738780591289,3.2078,2751.3,2751.0,0.00545306]
[1738780591492,0.00545306,2751.5,2751.0,0.00545306]
[1738780592000,3.2078,2751.3,2751.0,0.00545306]
[1738780594902,0.00545306,2751.5,2751.0,0.00545306]
[1738780596804,0.00545306,2751.5,2751.1,11.91887315]
[1738780597012,0.00545306,2751.5,2751.2,5.1484]
[1738780597701,0.00545306,2751.5,2751.4,7.11619796]
[1738780597899,4.8113,2752.4,2751.5,0.72676]
[1738780598092,5.47439796,2753.0,2752.2,3.2078]
[1738780598093,2.422,2752.9,2752.2,3.2078]
[1738780598298,2.422,2752.9,2752.3,3.90839796]
[1738780598497,2.3893,2753.2,2752.3,8.62177699]
[1738780598699,2.3893,2753.2,2752.4,3.2078]
[1738780598897,3.2078,2752.8,2752.1,3.2078]
[1738780599301,3.2078,2752.8,2752.5,0.00545306]
[1738780599302,2.5102,2752.7,2752.5,0.00545306]
[1738780599497,8.97459796,2752.7,2752.5,0.00545306]
[1738780599697,8.97459796,2752.7,2751.5,4.63981092]
[1738780599897,3.2078,2752.5,2751.5,4.63981092]
[1738780600297,5.0662,2752.7,2751.6,3.2078]
[1738780600500,3.00045306,2753.1,2752.0,7.11619796]
[1738780600701,3.00045306,2753.1,2752.2,3.2078]
[1738780600897,0.00545306,2753.1,2752.3,0.00545306]
[1738780601100,0.00545306,2753.1,2752.3,4.62612183]
[1738780601406,3.2078,2753.0,2752.3,0.00545306]
[1738780601703,3.2078,2752.7,2752.3,0.00545306]
[1738780601904,2.475,2752.6,2752.3,0.00545306]
[1738780602409,7.11619796,2753.0,2752.3,0.00545306]
[1738780602410,3.2078,2753.0,2752.3,3.21325306]
[1738780602599,0.00545306,2753.1,2752.3,7.12165102]
[1738780602909,0.00545306,2753.1,2752.3,3.21325306]
[1738780603599,3.2078,2753.0,2752.3,3.21325306]
[1738780607207,3.2078,2752.7,2752.3,0.00545306]
[1738780607602,2.5599,2752.6,2752.3,0.00545306]
[1738780608707,3.2078,2752.4,2752.3,0.00545306]
[1738780611512,0.00545306,2753.1,2752.3,16.90508344]
[1738780611715,0.00545306,2753.1,2753.0,3.90839796]
[1738780612111,0.00545306,2753.1,2753.0,10.19207261]
[1738780612615,0.00545306,2753.1,2753.0,6.28367465]
[1738780612820,0.00545306,2753.1,2753.0,1.47556217]
[1738780613406,0.00545306,2753.1,2753.0,0.56752391]
[1738780614016,0.00545306,2753.1,2752.6,3.2078]
[1738780614316,0.00545306,2753.1,2752.7,4.67184958]
[1738780614516,0.00545306,2753.1,2752.9,3.2078]
[1738780615513,0.00545306,2753.1,2753.0,0.56756287]
[1738780616016,0.00545306,2753.1,2753.0,10.1424642]
[1738780617015,0.00545306,2753.1,2753.0,15.1424642]
[1738780617215,4.9145,2754.0,2753.0,17.74356916]
[1738780617415,4.9145,2754.0,2753.1,3.2078]
[1738780617618,3.2078,2753.8,2753.1,3.2078]
[1738780617913,3.2078,2753.8,2753.2,1.47565148]
[1738780618122,7.11619796,2753.8,2753.2,1.47565148]
[1738780618417,7.12165102,2753.8,2753.1,3.2078]
[1738780618613,3.21325306,2753.8,2753.1,3.2078]
[1738780620013,3.2078,2753.2,2752.5,3.2078]
[1738780620813,3.2078,2752.9,2752.3,0.00545306]
[1738780621113,3.2078,2752.9,2752.4,0.56772008]
[1738780621716,3.2078,2752.9,2752.5,0.56772008]
[1738780622119,3.2078,2752.9,2752.3,0.00545306]
[1738780622920,3.2078,2752.9,2752.4,0.56776051]
[1738780623426,7.11619796,2752.5,2751.3,3.2078]
[1738780623615,5.6722,2752.4,2751.6,3.2078]
[1738780623926,3.2078,2752.8,2751.9,3.2078]
[1738780624520,3.2078,2752.8,2752.1,0.00545306]
[1738780624521,0.00545306,2752.6,2752.1,0.00545306]
[1738780627325,0.00545306,2752.6,2752.2,3.2078]
[1738780627523,0.73194306,2752.6,2752.2,4.69769904]
[1738780627722,3.2078,2752.3,2750.9,3.2078]
[1738780627921,3.2078,2751.6,2750.9,3.2078]
[1738780629026,3.2078,2751.6,2751.0,0.00545306]
[1738780629220,3.2078,2751.2,2751.0,0.00545306]
[1738780629525,2.5763,2751.1,2751.0,0.00545306]
[1738780629720,7.4909,2751.1,2751.0,0.00545306]
[1738780630123,12.4909,2751.1,2750.4,3.2078]
[1738780630422,7.4909,2751.1,2750.4,3.2078]
[1738780630925,2.5763,2751.1,2750.4,3.2078]
[1738780631327,0.00545306,2751.0,2750.5,0.00545306]
[1738780632525,0.00545306,2751.0,2750.7,3.2078]
[1738780632725,0.00545306,2751.0,2750.8,3.90839796]
[1738780633031,5.5784,2752.0,2750.8,11.02157006]
[1738780633231,5.5784,2752.0,2751.3,3.2078]
[1738780633731,5.5784,2752.0,2750.8,4.9885]
[1738780633732,5.5784,2752.0,2750.9,7.11619796]
[1738780634132,0.00545306,2751.7,2750.9,11.93048822]
[1738780634829,0.00545306,2751.7,2751.6,3.2078]
[1738780635829,0.00545306,2751.7,2751.2,3.2078]
[1738780636132,0.00545306,2751.7,2751.3,0.56791025]
[1738780636525,0.00545306,2751.7,2751.2,3.2078]
[1738780636739,0.00545306,2751.7,2750.9,7.11619796]
[1738780636936,0.00545306,2751.7,2751.0,0.56798278]
[1738780637434,0.00545306,2751.7,2750.9,3.2078]
[1738780637735,3.2078,2751.6,2750.9,3.2078]
[1738780639029,5.7649,2751.6,2750.9,3.2078]
[1738780639735,5.7649,2751.6,2751.0,4.79003847]
[1738780640130,8.1533,2751.6,2750.9,3.2078]
[1738780640431,3.2078,2751.6,2751.1,4.79003847]
[1738780640635,3.2078,2751.6,2751.0,4.79003847]
[1738780640832,3.2078,2751.6,2751.0,2.4695]
[1738780641032,0.00545306,2751.7,2751.2,7.11619796]
[1738780641332,5.1277,2752.2,2751.1,5.26554142]
[1738780641333,4.9757,2752.8,2751.5,7.11619796]
[1738780641532,4.9757,2752.8,2752.1,7.11619796]
[1738780641533,2.3764,2752.8,2752.1,7.11619796]
[1738780641727,5.5842,2752.8,2752.1,3.2078]
[1738780642038,2.3764,2752.8,2752.2,4.83138656]
[1738780642429,2.38185306,2752.8,2752.2,4.83683962]
[1738780642630,5.58965306,2752.8,2752.2,0.00545306]
[1738780644638,3.21325306,2752.8,2752.2,0.00545306]
[1738780644838,3.21325306,2752.8,2752.4,3.2078]
[1738780645337,0.00545306,2752.8,2752.4,7.11619796]
[1738780645537,0.00545306,2752.8,2752.7,7.11619796]
[1738780645741,0.00545306,2752.8,2752.7,12.11619796]
[1738780645938,0.00545306,2752.8,2752.7,16.86439636]
[1738780646333,0.00545306,2752.8,2752.7,17.43204353]
[1738780646534,0.00545306,2752.8,2752.7,12.43204353]
[1738780647350,0.00545306,2752.8,2752.7,8.52364557]
[1738780649243,0.00545306,2752.8,2752.7,12.43204353]